fUST/lending_fUST_20250626
["ID","MTS","AMOUNT","RATE_DAILY","PERIOD"]
[367854581,1750947039932,-460.0,0.0001726,2]
[367854582,1750947039941,-460.0,0.0001726,2]
[367854583,1750947039951,-497.905898,0.0001726,2]
[367854584,1750947039961,-440.0,0.0001726,2]
[367854585,1750947039971,-460.0,0.0001726,2]
[367854586,1750947039980,-460.0,0.0001726,2]
[367854587,1750947039989,-460.0,0.0001726,2]
[367854588,1750947039999,-554.93,0.0001726,2]
[367854589,1750947040008,-460.0,0.0001726,2]
[367854590,1750947040018,-413.77,0.00017277,3]
[367854591,1750947040027,-1670.0,0.00017287,2]
[367854593,1750947040036,-206.88,0.00017305,3]
[367854594,1750947040045,-1670.0,0.00017315,2]
[367854595,1750947040054,-500.0,0.00017335,2]
[367854596,1750947040064,-500.0,0.00017337,2]
[367854598,1750947040074,-1670.0,0.00017342,2]
[367854599,1750947040086,-1670.0,0.00017369,2]
[367854601,1750947040095,-801.11485616,0.0001738,2]
[367854603,1750947040105,-620.69,0.00017387,3]
[367854604,1750947040115,-1670.0,0.00017397,2]
[367854605,1750947040124,-1670.0,0.00017424,2]
[367854606,1750947040134,-1670.0,0.00017452,2]
[367854607,1750947040144,-500.0,0.00017466,2]
[367854608,1750947040153,-519.79,0.00017469,3]
[367854609,1750947040163,-500.0,0.00017469,2]
[367854610,1750947040173,-500.0,0.00017469,2]
[367854611,1750947040182,-1670.0,0.00017479,2]
[367854612,1750947040192,-546.68290139,0.00017492,2]
[367854613,1750947040201,-500.0,0.00017492,2]
[367854614,1750947040211,-151.0,0.000175,2]
[367854615,1750947040221,-1670.0,0.00017506,2]
[367854616,1750947040231,-1670.0,0.00017534,2]
[367854617,1750947040240,-460.0,0.00017534,2]
[367854618,1750947040249,-460.0,0.00017534,2]
[367854619,1750947040259,-460.0,0.00017534,2]
[367854620,1750947040268,-460.0,0.00017534,2]
[367854621,1750947040277,-480.86,0.00017534,2]
[367854622,1750947040287,-460.0,0.00017534,2]
[367854623,1750947040296,-460.0,0.00017534,2]
[367854624,1750947040305,-460.0,0.00017534,2]
[367854625,1750947040315,-500.0,0.00017561,2]
[367854626,1750947040324,-500.0,0.00017561,2]
[367854627,1750947040335,-500.0,0.00017561,2]
[367854628,1750947040345,-175.14154734,0.00017561,2]
[367854629,1750947040354,-1670.0,0.00017561,2]
[367854630,1750947040364,-500.41164183,0.00017572,2]
[367854631,1750947040373,-1670.0,0.00017589,2]
[367854632,1750947040383,-500.0,0.000176,2]
[367854633,1750947040393,-274.68275614,0.000176,2]
[367854634,1750947040402,-500.0,0.000176,2]
[367854635,1750947040411,-1670.0,0.00017616,2]
[367854636,1750947040421,-1670.0,0.00017643,2]
[367854637,1750947040431,-779.72,0.00017661,3]
[367854638,1750947040441,-1670.0,0.00017671,2]
[367854639,1750947040451,-1684.02021361,0.00017698,2]
[367854640,1750947040460,-151.0,0.00017807,2]
[367854641,1750947040469,-790.184929,0.00017807,2]
[367854643,1750947040479,-790.184929,0.00017807,2]
[367854645,1750947040488,-790.184929,0.00017807,2]
[367854646,1750947040498,-790.184929,0.00017807,2]
[367854647,1750947040507,-296.684516,0.00017807,2]
[367854649,1750947040519,-296.684516,0.00017807,2]
[367854650,1750947040529,-296.684516,0.00017807,2]
[367854651,1750947040538,-296.684516,0.00017807,2]
[367854652,1750947040548,-151.0,0.00017807,2]
[367854653,1750947040558,-460.0,0.00017808,2]
[367854654,1750947040567,-460.0,0.00017808,2]
[367854656,1750947040577,-530.21700918,0.00017808,2]
[367854658,1750947040592,-460.0,0.00017808,2]
[367854660,1750947040602,-460.0,0.00017808,2]
[367854662,1750947040611,-460.0,0.00017808,2]
[367854663,1750947040620,-460.0,0.00017808,2]
[367854664,1750947040630,-1007.27257125,0.00017885,2]
[367854665,1750947040640,-3640.53837328,0.000179,2]
[367854666,1750947040649,-420.0,0.00017963,2]
[367854667,1750947040658,-420.0,0.00017963,2]
[367854668,1750947040668,-151.0,0.00018,2]
[367854669,1750947040678,-500.0,0.00018014,2]
[367854670,1750947040688,-1000.0,0.00018017,2]
[367854671,1750947040697,-500.0,0.00018017,2]
[367854673,1750947040707,-184.164025,0.00018081,2]
[367854675,1750947040717,-184.164025,0.00018081,2]
[367854677,1750947040728,-184.164025,0.00018081,2]
[367854679,1750947040738,-184.164025,0.00018081,2]
[367854681,1750947040748,-460.0,0.00018082,2]
[367854683,1750947040758,-460.0,0.00018082,2]
[367854685,1750947040767,-460.0,0.00018082,2]
[367854687,1750947040777,-790.184929,0.00018082,2]
[367854689,1750947040786,-790.184929,0.00018082,2]
[367854691,1750947040797,-469.87338448,0.00018082,2]
[367854693,1750947040807,-296.684516,0.00018082,2]
[367854695,1750947040816,-296.684516,0.00018082,2]
[367854697,1750947040826,-460.0,0.00018082,2]
[367854699,1750947040838,-460.0,0.00018082,2]
[367854701,1750947040847,-166.6693084,0.00018082,2]
[367854703,1750947040856,-1003.33090911,0.00018109,2]
[367854705,1750947040865,-1001.8969566,0.00018148,2]
[367854707,1750947040875,-3640.5383732,0.00018176,2]
[367854709,1750947040885,-460.0,0.00018356,2]
[367854711,1750947040894,-524.3799977,0.00018356,2]
[367854713,1750947040903,-544.14510443,0.00018356,2]
[367854715,1750947040914,-460.0,0.00018356,2]
[367854717,1750947040923,-184.164025,0.00018356,2]
[367854719,1750947040932,-184.164025,0.00018356,2]
[367854721,1750947040942,-460.0,0.00018356,2]
[367854723,1750947040952,-160.0,0.00018435,2]
[367854725,1750947040961,-846.92323443,0.00018435,2]
[367854727,1750947040970,-213.72380786,0.00018435,2]
[367854729,1750947040979,-160.0,0.00018435,2]
[367854731,1750947040988,-160.0,0.00018435,2]
[367854733,1750947040997,-160.0,0.00018435,2]
[367854735,1750947041006,-160.0,0.00018435,2]
[367854737,1750947041016,-160.0,0.00018435,2]
[367854739,1750947041025,-836.92866116,0.00018435,2]
[367854741,1750947041034,-160.0,0.00018435,2]
[367854743,1750947041043,-230.24506774,0.00018435,2]
[367854745,1750947041052,-425.22527846,0.00018435,2]
[367854747,1750947041062,-12560.17507789,0.00018448,2]
[367854749,1750947041071,-3640.5383732,0.00018452,2]
[367854751,1750947041082,-151.0,0.000185,2]
[367854753,1750947041092,-460.0,0.0001863,2]
[367854755,1750947041101,-790.184929,0.0001863,2]
[367854757,1750947041110,-790.184929,0.0001863,2]
[367854759,1750947041119,-296.684516,0.0001863,2]
[367854761,1750947041129,-296.684516,0.0001863,2]
[367854763,1750947041138,-425.23,0.0001863,2]
[367854765,1750947041148,-460.0,0.0001863,2]
[367854767,1750947041157,-827.54,0.00018647,3]
[367854769,1750947041167,-413.76,0.00018675,3]
[367854771,1750947041176,-3640.5383732,0.00018728,2]
[367854773,1750947041186,-175.14154734,0.00018784,2]
[367854775,1750947041195,-460.0,0.00018904,2]
[367854777,1750947041204,-184.164025,0.00018904,2]
[367854779,1750947041213,-184.164025,0.00018904,2]
[367854781,1750947041223,-460.0,0.00018904,2]
[367854783,1750947041232,-151.0,0.00019,2]
[367854785,1750947041240,-3640.5383732,0.00019003,2]
[367854786,1750947041249,-460.0,0.00019178,2]
[367854788,1750947041259,-790.184929,0.00019178,2]
[367854791,1750947041268,-790.184929,0.00019178,2]
[367854792,1750947041277,-296.684516,0.00019178,2]
[367854794,1750947041287,-296.684516,0.00019178,2]
[367854796,1750947041296,-460.0,0.00019178,2]
[367854799,1750947041305,-414.362447,0.00019178,2]
[367854800,1750947041314,-3640.5383732,0.00019279,2]
[367854803,1750947041324,-460.0,0.00019452,2]
[367854804,1750947041334,-184.164025,0.00019452,2]
[367854806,1750947041343,-184.164025,0.00019452,2]
[367854808,1750947041352,-460.0,0.00019452,2]
[367854810,1750947041362,-239.37018834,0.00019499,2]
[367854812,1750947041371,-500.0,0.00019499,2]
[367854814,1750947041381,-500.0,0.00019499,2]
[367854816,1750947041390,-5000.0,0.00019499,2]
[367854818,1750947041400,-500.0,0.00019499,2]
[367854820,1750947041409,-500.0,0.00019499,2]
[367854822,1750947041418,-500.0,0.00019499,2]
[367854824,1750947041428,-500.0,0.00019499,2]
[367854826,1750947041437,-500.0,0.00019499,2]
[367854828,1750947041447,-500.0,0.00019499,2]
[367854830,1750947041456,-500.0,0.00019499,2]
[367854832,1750947041466,-500.0,0.00019499,2]
[367854834,1750947041475,-500.0,0.00019499,2]
[367854836,1750947041485,-500.0,0.00019499,2]
[367854838,1750947041494,-2242.47150122,0.00019499,2]
[367854840,1750947041504,-500.0,0.00019499,2]
[367854842,1750947041515,-500.0,0.00019499,2]
[367854844,1750947041524,-500.0,0.00019499,2]
[367854846,1750947041534,-200.0,0.00019499,2]
[367854848,1750947041543,-411.10678173,0.00019499,2]
[367854850,1750947041553,-500.0,0.00019499,2]
[367854852,1750947041562,-472.06,0.00019499,2]
[367854854,1750947041572,-207.4,0.00019499,2]
[367854856,1750947041581,-200.0,0.00019499,2]
[367854858,1750947041591,-500.0,0.00019499,2]
[367854860,1750947041600,-200.0,0.00019499,2]
[367854862,1750947041609,-500.0,0.00019499,2]
[367854864,1750947041617,-200.0,0.00019499,2]
[367854866,1750947041626,-500.0,0.00019499,2]
[367854867,1750947041636,-200.0,0.00019499,2]
[367854870,1750947041645,-500.0,0.00019499,2]
[367854871,1750947041655,-200.0,0.00019499,2]
[367854874,1750947041664,-500.0,0.00019499,2]
[367854876,1750947041673,-200.0,0.00019499,2]
[367854877,1750947041682,-500.0,0.00019499,2]
[367854880,1750947041692,-200.0,0.00019499,2]
[367854882,1750947041702,-500.0,0.00019499,2]
[367854884,1750947041712,-200.0,0.00019499,2]
[367854886,1750947041721,-500.0,0.00019499,2]
[367854888,1750947041730,-200.0,0.00019499,2]
[367854890,1750947041740,-500.0,0.00019499,2]
[367854892,1750947041749,-200.0,0.00019499,2]
[367854894,1750947041758,-500.0,0.00019499,2]
[367854896,1750947041768,-200.0,0.00019499,2]
[367854898,1750947041777,-200.0,0.00019499,2]
[367854900,1750947041787,-200.0,0.00019499,2]
[367854902,1750947041796,-200.0,0.00019499,2]
[367854904,1750947041805,-200.0,0.00019499,2]
[367854906,1750947041815,-200.0,0.00019499,2]
[367854908,1750947041824,-25000.0,0.00019499,2]
[367854910,1750947041834,-8632.14390024,0.00019499,2]
[367854912,1750947041843,-151.0,0.000195,2]
[367854914,1750947041853,-3640.5383732,0.00019555,2]
[367854916,1750947041862,-587.0,0.00019631,2]
[367854918,1750947041873,-587.0,0.00019631,2]
[367854920,1750947041882,-460.0,0.00019726,2]
[367854922,1750947041892,-790.184929,0.00019726,2]
[367854924,1750947041902,-790.184929,0.00019726,2]
[367854926,1750947041911,-296.684516,0.00019726,2]
[367854928,1750947041921,-296.684516,0.00019726,2]
[367854930,1750947041931,-460.0,0.00019726,2]
[367854932,1750947041941,-177.92820716,0.00019741,2]
[367854934,1750947041952,-3640.5383732,0.00019831,2]
[367854936,1750947041961,-460.0,0.0002,2]
[367854938,1750947041971,-184.164025,0.0002,2]
[367854940,1750947041982,-184.164025,0.0002,2]
[367854942,1750947041992,-460.0,0.0002,2]
[367854944,1750947042002,-151.0,0.0002,2]
[367854946,1750947042012,-175.14154734,0.00020007,2]
[367854948,1750947042022,-500.0,0.00020045,2]
[367854950,1750947042032,-500.0,0.00020045,2]
[367854952,1750947042041,-500.0,0.00020045,2]
[367854954,1750947042051,-500.0,0.00020045,2]
[367854956,1750947042060,-500.0,0.00020045,2]
[367854958,1750947042069,-500.0,0.00020045,2]
[367854960,1750947042078,-500.0,0.00020045,2]
[367854962,1750947042089,-500.0,0.00020045,2]
[367854963,1750947042098,-233.02833409,0.00020045,2]
[367854965,1750947042108,-500.00000005,0.00020045,2]
[367854967,1750947042117,-406.31263868,0.00020045,2]
[367854970,1750947042126,-500.0,0.00020045,2]
[367854972,1750947042136,-500.0,0.00020045,2]
[367854973,1750947042146,-500.0,0.00020045,2]
[367854975,1750947042156,-500.0,0.00020045,2]
[367854977,1750947042165,-500.0,0.00020045,2]
[367854980,1750947042174,-500.0,0.00020045,2]
[367854982,1750947042186,-500.0,0.00020045,2]
[367854984,1750947042196,-500.0,0.00020045,2]
[367854985,1750947042205,-500.0,0.00020045,2]
[367854987,1750947042215,-500.0,0.00020045,2]
[367854989,1750947042224,-500.0,0.00020045,2]
[367854991,1750947042233,-500.0,0.00020045,2]
[367854993,1750947042242,-646.33287751,0.00020045,2]
[367854995,1750947042252,-500.0,0.00020045,2]
[367854997,1750947042261,-500.0,0.00020045,2]
[367854999,1750947042270,-500.0,0.00020045,2]
[367855001,1750947042280,-500.0,0.00020045,2]
[367855003,1750947042289,-500.0,0.00020045,2]
[367855005,1750947042299,-425.51595038,0.00020045,2]
[367855007,1750947042309,-500.0,0.00020045,2]
[367855009,1750947042318,-500.0,0.00020045,2]
[367855011,1750947042328,-500.0,0.00020045,2]
[367855013,1750947042339,-500.0,0.00020045,2]
[367855015,1750947042348,-500.0,0.00020045,2]
[367855018,1750947042357,-500.0,0.00020045,2]
[367855020,1750947042367,-500.0,0.00020045,2]
[367855022,1750947042376,-500.0,0.00020045,2]
[367855023,1750947042385,-500.0,0.00020045,2]
[367855026,1750947042395,-500.0,0.00020045,2]
[367855027,1750947042405,-500.0,0.00020045,2]
[367855030,1750947042415,-500.0,0.00020045,2]
[367855031,1750947042424,-500.0,0.00020045,2]
[367855034,1750947042434,-500.0,0.00020045,2]
[367855035,1750947042444,-500.0,0.00020045,2]
[367855038,1750947042453,-500.0,0.00020045,2]
[367855040,1750947042463,-500.0,0.00020045,2]
[367855042,1750947042472,-500.0,0.00020045,2]
[367855043,1750947042482,-500.0,0.00020045,2]
[367855046,1750947042492,-500.0,0.00020045,2]
[367855048,1750947042502,-500.0,0.00020045,2]
[367855050,1750947042514,-500.0,0.00020045,2]
[367855052,1750947042526,-500.0,0.00020045,2]
[367855054,1750947042535,-500.0,0.00020045,2]
[367855056,1750947042545,-500.0,0.00020045,2]
[367855057,1750947042555,-500.0,0.00020045,2]
[367855059,1750947042565,-500.0,0.00020045,2]
[367855062,1750947042575,-500.0,0.00020045,2]
[367855064,1750947042586,-500.0,0.00020045,2]
[367855066,1750947042596,-500.0,0.00020045,2]
[367855067,1750947042605,-500.0,0.00020045,2]
[367855070,1750947042615,-500.0,0.00020045,2]
[367855072,1750947042624,-500.0,0.00020045,2]
[367855074,1750947042633,-500.0,0.00020045,2]
[367855076,1750947042642,-500.0,0.00020045,2]
[367855078,1750947042651,-500.0,0.00020045,2]
[367855079,1750947042661,-500.0,0.00020045,2]
[367855082,1750947042670,-500.0,0.00020045,2]
[367855084,1750947042680,-500.0,0.00020045,2]
[367855085,1750947042691,-500.0,0.00020045,2]
[367855087,1750947042700,-500.0,0.00020045,2]
[367855089,1750947042709,-500.0,0.00020045,2]
[367855091,1750947042719,-500.0,0.00020045,2]
[367855093,1750947042728,-500.0,0.00020045,2]
[367855095,1750947042737,-500.0,0.00020045,2]
[367855097,1750947042747,-500.0,0.00020045,2]
[367855122,1750947042895,-500.0,0.00020045,2]
[367855125,1750947042905,-575.68080959,0.00020045,2]
[367855128,1750947042914,-500.0,0.00020045,2]
[367855131,1750947042923,-500.0,0.00020045,2]
[367855133,1750947042933,-500.0,0.00020045,2]
[367855136,1750947042942,-500.0,0.00020045,2]
[367855139,1750947042951,-500.0,0.00020045,2]
[367855142,1750947042961,-500.0,0.00020045,2]
[367855144,1750947042970,-500.0,0.00020045,2]
[367855146,1750947042980,-500.0,0.00020045,2]
[367855148,1750947042989,-500.0,0.00020045,2]
[367855150,1750947042998,-500.0,0.00020045,2]
[367855152,1750947043007,-500.0,0.00020045,2]
[367855154,1750947043016,-500.0,0.00020045,2]
[367855156,1750947043026,-500.0,0.00020045,2]
[367855158,1750947043035,-384626.89993,0.00020046,2]
[367855160,1750947043044,-5000.0,0.00020047,2]
[367855162,1750947043053,-3640.5383732,0.00020107,2]
[367855164,1750947043062,-182.120989,0.00020187,2]
[367855166,1750947043071,-460.0,0.00020273,2]
[367855168,1750947043081,-790.184929,0.00020273,2]
[367855170,1750947043090,-790.184929,0.00020273,2]
[367855172,1750947043100,-296.684516,0.00020273,2]
[367855174,1750947043109,-296.684516,0.00020273,2]
[367855176,1750947043119,-460.0,0.00020273,2]
[367855178,1750947043128,-3640.5383732,0.00020383,3]
[367855180,1750947043137,-151.0,0.000205,3]
[367855182,1750947043146,-460.0,0.00020547,2]
[367855184,1750947043156,-184.164025,0.00020547,2]
[367855186,1750947043165,-184.164025,0.00020547,2]
[367855188,1750947043174,-499.91,0.00020547,2]
[367855190,1750947043184,-500.0,0.00020547,14]
[367855192,1750947043193,-5000.0,0.00020595,2]
[367855194,1750947043202,-3290.27,0.000206,2]
[367855196,1750947043211,-168.0,0.00020626,2]
[367855198,1750947043221,-846.92323443,0.0002063,3]
[367855200,1750947043230,-3640.5383732,0.00020659,3]
[367855202,1750947043240,-213.72380786,0.0002066,3]
[367855204,1750947043249,-966.0,0.000207,2]
[367855206,1750947043258,-2161.0,0.000207,2]
[367855208,1750947043267,-654.0,0.000207,2]
[367855210,1750947043277,-859.87736099,0.000208,2]
[367855212,1750947043286,-460.0,0.00020821,2]
[367855214,1750947043296,-790.184929,0.00020821,2]
[367855216,1750947043306,-790.184929,0.00020821,2]
[367855218,1750947043315,-296.684516,0.00020821,2]
[367855220,1750947043324,-296.684516,0.00020821,2]
[367855222,1750947043337,-630.376,0.00020822,2]
[367855224,1750947043347,-152551.6151328,0.00020853,2]
[367855227,1750947043356,-215.0738,0.00020868,2]
[367855229,1750947043365,-168.0,0.00020921,2]
[367855231,1750947043375,-3640.5383732,0.00020934,4]
[367855232,1750947043384,-184.164025,0.00020935,2]
[367855235,1750947043394,-184.164025,0.00020935,2]
[367855237,1750947043403,-790.184929,0.00020953,2]
[367855239,1750947043412,-790.184929,0.00020953,2]
[367855241,1750947043422,-296.684516,0.00020953,2]
[367855242,1750947043431,-296.684516,0.00020953,2]
[367855245,1750947043441,-184.164025,0.00020953,2]
[367855247,1750947043450,-184.164025,0.00020953,2]
[367855249,1750947043459,-500.0,0.00020958,15]
[367855250,1750947043469,-187.70087121,0.00020987,5]
[367855253,1750947043478,-57580.0,0.00021,2]
[367855254,1750947043487,-151.0,0.00021,4]
[367855256,1750947043496,-151.0,0.00021,4]
[367855258,1750947043505,-160.0,0.00021,2]
[367855260,1750947043519,-500.0,0.00021073,2]
[367855262,1750947043527,-500.0,0.00021073,2]
[367855264,1750947043537,-460.0,0.00021095,2]
[367855266,1750947043547,-5000.0,0.00021143,2]
[367855268,1750947043556,-168.0,0.00021178,2]
[367855270,1750947043565,-3640.5383732,0.0002121,4]
[367855272,1750947043573,-175.14154734,0.00021231,2]
[367855274,1750947043583,-500.0,0.00021277,2]
[367855276,1750947043592,-500.0,0.00021277,2]
[367855278,1750947043602,-432.95481487,0.00021277,2]
[367855280,1750947043611,-580.01754329,0.00021277,2]
[367855282,1750947043620,-500.0,0.00021277,2]
[367855284,1750947043629,-500.0,0.00021277,2]
[367855286,1750947043638,-2200.0,0.0002128,2]
[367855288,1750947043647,-600.0,0.00021317,2]
[367855290,1750947043657,-500.0,0.00021317,2]
[367855292,1750947043666,-500.43078147,0.00021317,2]
[367855294,1750947043676,-500.0,0.00021317,2]
[367855296,1750947043685,-500.0,0.00021317,2]
[367855298,1750947043695,-500.0,0.00021317,2]
[367855300,1750947043704,-500.0,0.00021317,2]
[367855302,1750947043714,-500.0,0.00021317,2]
[367855304,1750947043724,-250.0,0.00021333,2]
[367855306,1750947043733,-460.0,0.00021369,2]
[367855308,1750947043742,-500.0,0.00021369,16]
[367855310,1750947043752,-151.0,0.000214,3]
[367855312,1750947043761,-823.0,0.00021454,2]
[367855314,1750947043771,-823.0,0.00021454,2]
[367855316,1750947043780,-500.0,0.00021473,2]
[367855318,1750947043790,-3640.5383732,0.00021486,5]
[367855320,1750947043799,-151.0,0.000215,4]
[367855322,1750947043808,-1590.446918,0.0002156,4]
[367855324,1750947043818,-790.184929,0.000216,2]
[367855326,1750947043827,-790.184924,0.000216,2]
[367855328,1750947043837,-296.684516,0.000216,2]
[367855330,1750947043847,-296.684509,0.000216,2]
[367855332,1750947043856,-184.164025,0.000216,2]
[367855334,1750947043866,-184.164023,0.000216,2]
[367855336,1750947043876,-1000.0,0.00021621,2]
[367855338,1750947043885,-460.0,0.00021643,2]
[367855340,1750947043894,-5000.0,0.00021691,2]
[367855342,1750947043904,-3290.27,0.000217,2]
[367855343,1750947043912,-800.0,0.00021761,2]
[367855345,1750947043922,-3640.5383732,0.00021762,5]
[367855347,1750947043932,-200.0,0.0002177,4]
[367855350,1750947043942,-222981.57520218,0.00021778,2]
[367855351,1750947043951,-500.0,0.0002178,17]
[367855352,1750947043962,-1082.92491823,0.00021825,2]
[367855353,1750947043972,-1000.0,0.00021825,2]
[367855354,1750947043982,-1000.0,0.00021825,2]
[367855355,1750947043991,-1200.0,0.00021865,2]
[367855356,1750947044001,-1000.0,0.00021865,2]
[367855357,1750947044010,-153.17919225,0.00021865,2]
[367855358,1750947044020,-1000.0,0.00021865,2]
[367855359,1750947044030,-464.29479316,0.00021865,2]
[367855360,1750947044040,-500.0,0.00021917,2]
[367855361,1750947044050,-500.0,0.00021917,2]
[367855362,1750947044059,-460.0,0.00021917,2]
[367855363,1750947044069,-360.44557691,0.00021917,2]
[367855364,1750947044078,-603.3048026,0.00021947,2]
[367855365,1750947044089,-800.0,0.00021962,2]
[367855366,1750947044098,-800.0,0.00021964,2]
[367855367,1750947044108,-500.0,0.00021973,2]
[367855368,1750947044119,-500.0,0.00021973,2]
[367855370,1750947044129,-500.0,0.00021973,2]
[367855371,1750947044138,-500.0,0.00021973,2]
[367855372,1750947044147,-333.4424912,0.00021973,2]
[367855373,1750947044157,-500.0,0.00021973,2]
[367855374,1750947044171,-500.0,0.00021973,2]
[367855375,1750947044180,-500.0,0.00021973,2]
[367855377,1750947044190,-500.0,0.00021973,2]
[367855379,1750947044199,-33606.01203106,0.00022,2]
[367855381,1750947044209,-6858.70700737,0.00022,2]
[367855383,1750947044218,-22631.4378549,0.00022,2]
[367855385,1750947044228,-19012.71910045,0.00022,2]
[367855387,1750947044237,-548.87484091,0.00022,2]
[367855389,1750947044246,-161.34640292,0.00022,2]
[367855391,1750947044255,-2000.0,0.00022,2]
[367855393,1750947044264,-37847.08106029,0.00022,2]
[367855395,1750947044274,-351.72011154,0.00022,2]
[367855397,1750947044283,-38953.43388207,0.00022,2]
[367855455,1750947044841,-0.01019122,0.00020045,2]
[367855609,1750947046342,-1138.81636007,0.00017242,2]
[367855610,1750947046354,-600.98491795,0.00017242,2]
[367855611,1750947046364,-668.93891658,0.00020045,2]
[367855612,1750947046399,-53.22651877,0.00020045,2]
[367855613,1750947046409,-722.17562657,0.00020045,2]
[367855614,1750947046418,-722.17562657,0.00020045,2]
[367855615,1750947046427,-722.17562657,0.00020045,2]
[367855616,1750947046437,-722.17562657,0.00020045,2]
[367855617,1750947046446,-722.17562657,0.00020045,2]
[367855618,1750947046455,-722.17562657,0.00020045,2]
[367855619,1750947046465,-722.17562657,0.00020045,2]
[367855620,1750947046475,-722.17562657,0.00020045,2]
[367855621,1750947046484,-722.17562657,0.00020045,2]
[367855622,1750947046494,-722.17562657,0.00020045,2]
[367855623,1750947046503,-722.17562657,0.00020045,2]
[367855624,1750947046513,-722.17562657,0.00020045,2]
[367855625,1750947046525,-722.17562657,0.00020045,2]
[367855626,1750947046534,-722.17562657,0.00020045,2]
[367855627,1750947046544,-722.17562657,0.00020045,2]
[367855628,1750947046554,-722.17562657,0.00020045,2]
[367855629,1750947046564,-722.17562657,0.00020045,2]
[367855630,1750947046573,-722.17562657,0.00020045,2]
[367855631,1750947046582,-722.17562657,0.00020045,2]
[367855632,1750947046596,-722.17562657,0.00020045,2]
[367855633,1750947046606,-722.17562657,0.00020045,2]
[367855634,1750947046615,-722.17562657,0.00020045,2]
[367855635,1750947046625,-722.17562657,0.00020045,2]
[367855636,1750947046633,-722.17562657,0.00020045,2]
[367855637,1750947046643,-722.17562657,0.00020045,2]
[367855638,1750947046653,-722.17562657,0.00020045,2]
[367855639,1750947046662,-722.17562657,0.00020045,2]
[367855640,1750947046671,-722.17562657,0.00020045,2]
[367855641,1750947046682,-722.17562657,0.00020045,2]
[367855642,1750947046692,-722.17562657,0.00020045,2]
[367855643,1750947046702,-722.17562657,0.00020045,2]
[367855644,1750947046711,-722.17562657,0.00020045,2]
[367855645,1750947046721,-722.17562657,0.00020045,2]
[367855646,1750947046731,-722.17562657,0.00020045,2]
[367855647,1750947046740,-722.17562657,0.00020045,2]
[367855648,1750947046750,-722.17562657,0.00020045,2]
[367855649,1750947046760,-722.17562657,0.00020045,2]
[367855650,1750947046769,-722.17562657,0.00020045,2]
[367855651,1750947046779,-722.17562657,0.00020045,2]
[367855652,1750947046788,-722.17562657,0.00020045,2]
[367855653,1750947046797,-722.17562657,0.00020045,2]
[367855654,1750947046806,-722.17562657,0.00020045,2]
[367855655,1750947046816,-406.0,0.000207,2]
[367855656,1750947046825,-1001.263524,0.00021,2]
[367855657,1750947046835,-1000.0,0.000215,2]
[367855658,1750947046845,-112709.35257716,0.00022,2]
[367855659,1750947046876,-10168.55647209,0.00022,2]
[367855660,1750947046888,-386.63365171,0.00022,2]
[367855680,1750947263607,-330.8,0.00020026,2]
[367855681,1750947269156,-94.42527846,0.00020026,2]
[367855682,1750947269177,-230.24506774,0.00020026,2]
[367855683,1750947269198,-22.33715817,0.00020026,2]
[367855684,1750947513336,1672.87,0.000229,31]
[367855685,1750947513401,1672.87,0.000229,31]